[Event "Chinese Team-ch Men 2025"]
[Site "Zhang Jiakou Hebei"]
[Date "2025.05.01"]
[Round "7.8"]
[White "Zhang, Zhi"]
[Black "Xi, Qi"]
[Result "0-1"]
[Annotator "ChessBase"]
[ECO "A07"]
[WhiteElo "2167"]
[BlackElo "2257"]
[PlyCount "134"]
[EventDate "2025.04.26"]
[EventType "team-tourn"]
[EventCountry "CHN"]
[SourceTitle "playchess.com"]
[Source "ChessBase"]
[SourceQuality "1"]
[TimeControl "5400+30"]

1. Nf3 {[%emt 0:00:04]} d5 {[%emt 0:00:11]} 2. g3 {[%emt 0:00:10]} Nf6 {[%emt 0:02:10]} 3. Bg2 {[%emt 0:00:09]} c6 {[%emt 0:00:09]} 4. d3 {[%emt 0:00:13]} Bg4 {[%emt 0:00:43]} 5. O-O {[%emt 0:00:25]} Nbd7 {[%emt 0:03:59]} 6. h3 {[%emt 0:00:15]} Bh5 {[%emt 0:00:49]} 7. Qe1 {[%emt 0:00:16]} e5 {[%emt 0:03:47]} 8. e4 {[%emt 0:00:10]} dxe4 {[%emt 0:01:25]} 9. dxe4 {[%emt 0:00:04]} Bc5 {[%emt 0:01:32]} 10. b4 {[%emt 0:10:13]} Bd6 {[%emt 0:08:40]} 11. Nh4 {[%emt 0:07:51]} O-O {[%emt 0:01:49]} 12. Nf5 {[%emt 0:00:48]} Bc7 {[%emt 0:05:08]} 13. a4 {[%emt 0:10:50]} a5 {[%emt 0:08:36]} 14. b5 {[%emt 0:08:20]} Bb6 {[%emt 0:03:44]} 15. Na3 {[%emt 0:03:58]} cxb5 {[%emt 0:09:19]} 16. Nxb5 {[%emt 0:01:46]} Bc5 {[%emt 0:04:20]} 17. Bd2 {[%emt 0:04:10]} b6 {[%emt 0:06:58]} 18. g4 {[%emt 0:08:00]} Bg6 {[%emt 0:00:12]} 19. Qe2 {[%emt 0:00:32]} Re8 {[%emt 0:11:14]} 20. Rad1 {[%emt 0:00:56]} Qb8 {[%emt 0:01:30]} 21. h4 {[%emt 0:20:16]} h5 {[%emt 0:02:40]} 22. g5 {[%emt 0:00:16]} Ng4 {[%emt 0:09:47]} 23. Qf3 {[%emt 0:00:15]} Nf8 {[%emt 0:02:33]} 24. Bh3 {[%emt 0:01:43]} Bxf5 {[%emt 0:00:45]} 25. Qxf5 {[%emt 0:00:05]} Ng6 {[%emt 0:00:37]} 26. Qf3 {[%emt 0:04:02]} Nxh4 {[%emt 0:02:02]} 27. Qg3 {[%emt 0:00:03]} Ng6 {[%emt 0:00:24]} 28. Bxg4 {[%emt 0:00:48]} hxg4 {[%emt 0:00:01]} 29. Qxg4 {[%emt 0:00:10]} Qc8 {[%emt 0:00:39]} 30. Qxc8 {[%emt 0:09:36]} Raxc8 {[%emt 0:00:04]} 31. Kg2 {[%emt 0:00:09]} Be7 {[%emt 0:02:41]} 32. c3 {[%emt 0:05:55]} Rc4 {[%emt 0:00:19]} 33. f3 {[%emt 0:00:32]} Rxa4 {[%emt 0:00:44]} 34. Nc7 {[%emt 0:00:40]} Rc8 {[%emt 0:01:44]} 35. Nd5 {[%emt 0:00:01]} Bc5 {[%emt 0:00:33]} 36. Ra1 {[%emt 0:02:25]} Rxa1 {[%emt 0:01:33]} 37. Rxa1 {[%emt 0:00:02]} Ne7 {[%emt 0:01:21]} 38. Kf1 {[%emt 0:02:11]} Nxd5 {[%emt 0:01:38]} 39. exd5 {[%emt 0:00:02]} Kf8 {[%emt 0:00:01]} 40. Ke2 {[%emt 0:00:23]} Ke7 {[%emt 0:00:10]} 41. Rh1 {[%emt 0:01:33]} a4 {[%emt 0:01:47]} 42. Kd3 {[%emt 0:00:03]} Kd6 {[%emt 0:00:38]} 43. Ke4 {[%emt 0:01:04]} a3 {[%emt 0:00:32]} 44. c4 {[%emt 0:00:14]} Ra8 {[%emt 0:01:20]} 45. f4 {[%emt 0:00:11]} Re8 {[%emt 0:00:53]} 46. Kf5 {[%emt 0:00:20]} b5 {[%emt 0:01:12]} 47. cxb5 {[%emt 0:00:45]} Kxd5 {[%emt 0:00:10]} 48. Ra1 {[%emt 0:00:55]} e4 {[%emt 0:00:37]} 49. Bc3 {[%emt 0:00:12]} g6+ {[%emt 0:00:41]} 50. Kf6 {[%emt 0:00:18]} Re7 {[%emt 0:00:14]} 51. f5 {[%emt 0:01:04]} gxf5 {[%emt 0:00:08]} 52. Kxf5 {[%emt 0:00:06]} e3 {[%emt 0:00:26]} 53. Bf6 {[%emt 0:00:57]} Rb7 {[%emt 0:00:47]} 54. Rd1+ {[%emt 0:00:00]} Kc4 {[%emt 0:00:05]} 55. Ke4 {[%emt 0:00:26]} Rxb5 {[%emt 0:00:49]} 56. Rc1+ {[%emt 0:00:12]} Kb3 {[%emt 0:00:12]} 57. Kd3 {[%emt 0:00:15]} Bb6 {[%emt 0:01:19]} 58. Rb1+ {[%emt 0:01:10]} Ka4 {[%emt 0:00:02]} 59. Rh1 {[%emt 0:00:13]} Rd5+ {[%emt 0:00:26]} 60. Kc4 {[%emt 0:00:24]} Rd7 {[%emt 0:00:44]} 61. Rh4 {[%emt 0:00:54]} Rc7+ {[%emt 0:00:26]} 62. Kd3+ {[%emt 0:00:07]} Kb3 {[%emt 0:00:13]} 63. Rh8 {[%emt 0:00:30]} Rd7+ {[%emt 0:00:11]} 64. Ke2 {[%emt 0:00:11]} Rd2+ {[%emt 0:00:09]} 65. Ke1 {[%emt 0:00:09]} Ba5 {[%emt 0:00:48]} 66. Rb8+ {[%emt 0:00:41]} Ka4 {[%emt 0:00:24]} 67. Ra8 {[%emt 0:00:04]} Rc2+ {[%emt 0:00:35]} 0-1

[Event "Chinese Team-ch Men 2025"]
[Site "Zhang Jiakou Hebei"]
[Date "2025.05.01"]
[Round "7.9"]
[White "Yu, Shaoteng"]
[Black "Xu, Yi"]
[Result "1/2-1/2"]
[Annotator "ChessBase"]
[ECO "C42"]
[WhiteElo "2480"]
[BlackElo "2480"]
[PlyCount "61"]
[EventDate "2025.04.26"]
[EventType "team-tourn"]
[EventCountry "CHN"]
[SourceTitle "playchess.com"]
[Source "ChessBase"]
[SourceQuality "1"]
[TimeControl "5400+30"]

1. e4 {[%emt 0:00:04]} e5 {[%emt 0:00:03]} 2. Nf3 {[%emt 0:00:11]} Nf6 {[%emt 0:00:04]} 3. Nxe5 {[%emt 0:01:03]} d6 {[%emt 0:00:06]} 4. Nf3 {[%emt 0:00:25]} Nxe4 {[%emt 0:00:06]} 5. d4 {[%emt 0:01:01]} d5 {[%emt 0:00:07]} 6. Bd3 {[%emt 0:00:13]} Bf5 {[%emt 0:00:10]} 7. O-O {[%emt 0:01:15]} Be7 {[%emt 0:00:09]} 8. Re1 {[%emt 0:01:52]} O-O {[%emt 0:00:17]} 9. c4 {[%emt 0:02:55]} Nc6 {[%emt 0:01:11]} 10. cxd5 {[%emt 0:03:32]} Qxd5 {[%emt 0:00:05]} 11. Bxe4 {[%emt 0:11:10]} Bxe4 {[%emt 0:01:56]} 12. Nc3 {[%emt 0:00:42]} Bxf3 {[%emt 0:00:05]} 13. Nxd5 {[%emt 0:00:10]} Bxd1 {[%emt 0:00:04]} 14. Nxe7+ {[%emt 0:00:10]} Nxe7 {[%emt 0:00:04]} 15. Rxe7 {[%emt 0:00:08]} Rfe8 {[%emt 0:00:28]} 16. Rxe8+ {[%emt 0:00:21]} Rxe8 {[%emt 0:00:05]} 17. Be3 {[%emt 0:00:05]} Bg4 {[%emt 0:03:39]} 18. d5 {[%emt 0:00:08]} Re5 {[%emt 0:16:07]} 19. Rc1 {[%emt 0:09:12]} Rxd5 {[%emt 0:00:41]} 20. f3 {[%emt 0:00:15]} Be6 {[%emt 0:00:49]} 21. Rxc7 {[%emt 0:00:13]} Rb5 {[%emt 0:00:49]} 22. b3 {[%emt 0:00:48]} a5 {[%emt 0:00:30]} 23. Rc5 {[%emt 0:00:52]} Rxc5 {[%emt 0:00:06]} 24. Bxc5 {[%emt 0:00:07]} a4 {[%emt 0:00:23]} 25. bxa4 {[%emt 0:00:07]} Bxa2 {[%emt 0:00:11]} 26. Kf2 {[%emt 0:00:05]} f6 {[%emt 0:00:16]} 27. Ke3 {[%emt 0:00:08]} Bb3 {[%emt 0:00:08]} 28. a5 {[%emt 0:00:04]} Bc4 {[%emt 0:00:06]} 29. Kd4 {[%emt 0:00:26]} Bf1 {[%emt 0:00:09]} 30. g3 {[%emt 0:00:03]} Kf7 {[%emt 0:00:08]} 31. Ke4 {[%emt 0:01:12]} 1/2-1/2

[Event "Chinese Team-ch Men 2025"]
[Site "Zhang Jiakou Hebei"]
[Date "2025.05.01"]
[Round "7.10"]
[White "Lou, Yiping"]
[Black "Jiang, Haochen"]
[Result "1/2-1/2"]
[Annotator "ChessBase"]
[ECO "A33"]
[WhiteElo "2464"]
[BlackElo "2441"]
[PlyCount "60"]
[EventDate "2025.04.26"]
[EventType "team-tourn"]
[EventCountry "CHN"]
[SourceTitle "playchess.com"]
[Source "ChessBase"]
[SourceQuality "1"]
[TimeControl "5400+30"]

1. Nf3 {[%emt 0:00:03]} Nf6 {[%emt 0:00:47]} 2. c4 {[%emt 0:00:09]} c5 {[%emt 0:04:12]} 3. Nc3 {[%emt 0:02:19]} Nc6 {[%emt 0:00:10]} 4. d4 {[%emt 0:00:53]} cxd4 {[%emt 0:00:06]} 5. Nxd4 {[%emt 0:00:03]} e6 {[%emt 0:00:02]} 6. a3 {[%emt 0:02:09]} Bc5 {[%emt 0:05:23]} 7. Nb3 {[%emt 0:01:35]} Bb6 {[%emt 0:00:33]} 8. Bf4 {[%emt 0:04:43]} e5 {[%emt 0:09:26]} 9. Bg3 {[%emt 0:01:54]} d6 {[%emt 0:01:00]} 10. e3 {[%emt 0:05:46]} O-O {[%emt 0:02:12]} 11. Bh4 {[%emt 0:02:11]} h6 {[%emt 0:01:58]} 12. Bxf6 {[%emt 0:02:19]} Qxf6 {[%emt 0:00:45]} 13. Be2 {[%emt 0:00:07]} Be6 {[%emt 0:15:16]} 14. O-O {[%emt 0:02:20]} Rfd8 {[%emt 0:00:20]} 15. Nd5 {[%emt 0:11:25]} Bxd5 {[%emt 0:04:49]} 16. Qxd5 {[%emt 0:01:15]} Qe6 {[%emt 0:03:03]} 17. Rfd1 {[%emt 0:08:39]} Qxd5 {[%emt 0:17:38]} 18. Rxd5 {[%emt 0:00:23]} Ne7 {[%emt 0:00:04]} 19. Rd2 {[%emt 0:00:24]} d5 {[%emt 0:01:39]} 20. cxd5 {[%emt 0:08:41]} Rxd5 {[%emt 0:02:16]} 21. Rad1 {[%emt 0:01:55]} Rxd2 {[%emt 0:04:51]} 22. Rxd2 {[%emt 0:00:55]} Rc8 {[%emt 0:00:06]} 23. g4 {[%emt 0:03:02]} g6 {[%emt 0:02:30]} 24. Bf3 {[%emt 0:05:24]} Rc7 {[%emt 0:01:20]} 25. Rd8+ {[%emt 0:04:58]} Kg7 {[%emt 0:00:11]} 26. Rb8 {[%emt 0:00:04]} Nc6 {[%emt 0:04:25]} 27. Re8 {[%emt 0:01:35]} f5 {[%emt 0:03:18]} 28. gxf5 {[%emt 0:05:31]} gxf5 {[%emt 0:00:01]} 29. Bxc6 {[%emt 0:00:13]} Rxc6 {[%emt 0:00:06]} 30. Rxe5 {[%emt 0:00:04]} f4 {[%emt 0:00:55]} 1/2-1/2

[Event "Chinese Team-ch Men 2025"]
[Site "Zhang Jiakou Hebei"]
[Date "2025.05.01"]
[Round "7.11"]
[White "Chen, KaiLin"]
[Black "Meng, Yihan"]
[Result "1/2-1/2"]
[Annotator "ChessBase"]
[ECO "C43"]
[WhiteElo "2329"]
[BlackElo "2433"]
[PlyCount "72"]
[EventDate "2025.04.26"]
[EventType "team-tourn"]
[EventCountry "CHN"]
[SourceTitle "playchess.com"]
[Source "ChessBase"]
[SourceQuality "1"]
[TimeControl "5400+30"]

1. e4 {[%emt 0:00:02]} e5 {[%emt 0:00:05]} 2. Nf3 {[%emt 0:00:03]} Nf6 {[%emt 0:00:04]} 3. d4 {[%emt 0:00:03]} Nxe4 {[%emt 0:00:05]} 4. Bd3 {[%emt 0:00:03]} d5 {[%emt 0:00:05]} 5. Nxe5 {[%emt 0:00:03]} Nd7 {[%emt 0:00:03]} 6. Nxd7 {[%emt 0:00:07]} Bxd7 {[%emt 0:00:06]} 7. O-O {[%emt 0:00:06]} Bd6 {[%emt 0:00:11]} 8. c4 {[%emt 0:00:04]} O-O {[%emt 0:00:05]} 9. cxd5 {[%emt 0:00:02]} f5 {[%emt 0:00:09]} 10. Nc3 {[%emt 0:00:03]} Qf6 {[%emt 0:00:14]} 11. Qc2 {[%emt 0:00:28]} Rae8 {[%emt 0:09:33]} 12. Nxe4 {[%emt 0:00:05]} fxe4 {[%emt 0:00:05]} 13. Bxe4 {[%emt 0:00:02]} Bxh2+ {[%emt 0:00:34]} 14. Kxh2 {[%emt 0:00:03]} Qh4+ {[%emt 0:00:05]} 15. Kg1 {[%emt 0:00:02]} Qxe4 {[%emt 0:02:09]} 16. Qxe4 {[%emt 0:00:02]} Re7 17. Qe6+ Rxe6 18. Be3 Re4 19. Rfe1 c6 20. f3 cxd5 21. Bd2 Re6 22. Kf2 Rfe8 23. Re5 Bb5 24. Rxe6 Rxe6 25. Re1 Kf7 26. Rxe6 Kxe6 27. Ke3 h5 28. g3 Kf5 29. Bb4 g5 30. Be7 a6 31. a3 Bc4 32. b4 b5 33. Bd8 Bb3 34. Be7 Bc4 35. Bd8 Bb3 36. Be7 {[%emt 0:10:00]} Bc4 {[%emt 0:10:06]} 1/2-1/2

[Event "Chinese Team-ch Men 2025"]
[Site "Zhang Jiakou Hebei"]
[Date "2025.05.01"]
[Round "7.12"]
[White "Gong, Sunle"]
[Black "Yu, Kaifeng"]
[Result "0-1"]
[Annotator "ChessBase"]
[ECO "D35"]
[WhiteElo "2410"]
[BlackElo "2312"]
[PlyCount "100"]
[EventDate "2025.04.26"]
[EventType "team-tourn"]
[EventCountry "CHN"]
[SourceTitle "playchess.com"]
[Source "ChessBase"]
[SourceQuality "1"]
[TimeControl "5400+30"]

1. d4 {[%emt 0:00:01]} Nf6 {[%emt 0:00:06]} 2. c4 {[%emt 0:00:04]} e6 {[%emt 0:00:03]} 3. Nc3 {[%emt 0:00:07]} d5 {[%emt 0:00:03]} 4. cxd5 {[%emt 0:00:52]} exd5 {[%emt 0:00:04]} 5. Bg5 {[%emt 0:00:05]} c6 {[%emt 0:00:04]} 6. e3 {[%emt 0:00:04]} h6 {[%emt 0:00:06]} 7. Bh4 {[%emt 0:00:04]} Be7 {[%emt 0:00:06]} 8. Bd3 {[%emt 0:00:09]} O-O {[%emt 0:00:09]} 9. Nge2 {[%emt 0:00:25]} Re8 {[%emt 0:00:16]} 10. O-O {[%emt 0:00:04]} Nbd7 {[%emt 0:00:09]} 11. f3 {[%emt 0:00:06]} b5 {[%emt 0:00:05]} 12. Rc1 {[%emt 0:00:11]} Bb7 {[%emt 0:00:06]} 13. Qd2 {[%emt 0:02:33]} a6 {[%emt 0:01:40]} 14. Bf5 {[%emt 0:01:38]} Nb6 {[%emt 0:21:13]} 15. b3 {[%emt 0:04:33]} g6 {[%emt 0:01:28]} 16. Bh3 {[%emt 0:01:17]} Bc8 {[%emt 0:01:30]} 17. Bxc8 {[%emt 0:00:48]} Rxc8 {[%emt 0:00:02]} 18. Kh1 {[%emt 0:03:18]} b4 {[%emt 0:27:58]} 19. Nd1 {[%emt 0:01:02]} a5 {[%emt 0:04:37]} 20. Nf2 {[%emt 0:01:41]} Nfd7 {[%emt 0:06:02]} 21. Bxe7 {[%emt 0:02:24]} Qxe7 {[%emt 0:00:05]} 22. e4 {[%emt 0:02:26]} dxe4 {[%emt 0:00:04]} 23. fxe4 {[%emt 0:12:24]} h5 {[%emt 0:00:04]} 24. e5 {[%emt 0:05:18]} c5 {[%emt 0:02:01]} 25. Nf4 {[%emt 0:01:10]} cxd4 {[%emt 0:03:08]} 26. Rxc8 {[%emt 0:00:21]} Rxc8 {[%emt 0:01:08]} 27. e6 {[%emt 0:00:15]} fxe6 {[%emt 0:04:23]} 28. Qd3 {[%emt 0:06:28]} Nf8 {[%emt 0:11:57]} 29. Nxg6 {[%emt 0:09:40]} Qh7 {[%emt 0:00:35]} 30. Ne4 {[%emt 0:02:55]} Qxg6 {[%emt 0:06:30]} 31. Nf6+ {[%emt 0:00:06]} Kf7 {[%emt 0:00:59]} 32. Qxd4 {[%emt 0:03:44]} Ke7 {[%emt 0:00:15]} 33. Qh4 {[%emt 0:29:09]} Qd3 {[%emt 0:00:05]} 34. Nxh5+ {[%emt 0:08:06]} Kd6 {[%emt 0:01:48]} 35. Ng3 {[%emt 0:00:26]} Nfd7 {[%emt 0:01:09]} 36. Qf4+ {[%emt 0:01:07]} e5 {[%emt 0:01:38]} 37. Qg4 {[%emt 0:00:56]} Kc7 {[%emt 0:01:01]} 38. h4 {[%emt 0:00:16]} Nd5 {[%emt 0:04:03]} 39. Rf3 {[%emt 0:02:06]} N5f6 {[%emt 0:02:18]} 40. Qe6 {[%emt 0:00:34]} Qd6 {[%emt 0:00:08]} 41. Qc4+ {[%emt 0:01:00]} Qc6 {[%emt 0:00:13]} 42. Qe2 {[%emt 0:00:59]} Rg8 {[%emt 0:01:01]} 43. Nf5 {[%emt 0:00:13]} Rg4 {[%emt 0:00:25]} 44. g3 {[%emt 0:00:26]} Re4 {[%emt 0:01:02]} 45. Qd3 {[%emt 0:00:29]} Re1+ {[%emt 0:00:18]} 46. Kh2 {[%emt 0:00:14]} e4 {[%emt 0:00:19]} 47. Qd2 {[%emt 0:00:19]} exf3 {[%emt 0:00:04]} 48. Nd4 {[%emt 0:00:12]} Qe4 {[%emt 0:00:49]} 49. Nb5+ {[%emt 0:00:12]} Kd8 {[%emt 0:00:08]} 50. Qg5 {[%emt 0:00:03]} Qe2+ {[%emt 0:00:06]} 0-1

[Event "Chinese Team-ch Men 2025"]
[Site "Zhang Jiakou Hebei"]
[Date "2025.05.01"]
[Round "7.13"]
[White "Xu, Xiangyu"]
[Black "Bai, Jinshi"]
[Result "1/2-1/2"]
[Annotator "ChessBase"]
[ECO "D79"]
[WhiteElo "2623"]
[BlackElo "2569"]
[PlyCount "60"]
[EventDate "2025.04.26"]
[EventType "team-tourn"]
[EventCountry "CHN"]
[SourceTitle "playchess.com"]
[Source "ChessBase"]
[SourceQuality "1"]
[TimeControl "5400+30"]

1. Nf3 {[%emt 0:00:05]} d5 {[%emt 0:00:59]} 2. g3 {[%emt 0:00:16]} g6 {[%emt 0:01:02]} 3. Bg2 {[%emt 0:05:54]} Bg7 {[%emt 0:03:40]} 4. d4 {[%emt 0:00:14]} Nf6 {[%emt 0:00:35]} 5. O-O {[%emt 0:00:16]} O-O {[%emt 0:01:04]} 6. c4 {[%emt 0:02:07]} c6 {[%emt 0:02:09]} 7. cxd5 {[%emt 0:03:25]} cxd5 {[%emt 0:00:10]} 8. Nc3 {[%emt 0:00:16]} Ne4 {[%emt 0:03:05]} 9. Ne5 {[%emt 0:00:57]} Nxc3 {[%emt 0:01:14]} 10. bxc3 {[%emt 0:00:09]} Nc6 {[%emt 0:00:09]} 11. Nxc6 {[%emt 0:00:15]} bxc6 {[%emt 0:00:06]} 12. Qa4 {[%emt 0:01:06]} Qb6 {[%emt 0:00:49]} 13. Ba3 {[%emt 0:00:23]} Qa6 {[%emt 0:00:56]} 14. Qxa6 {[%emt 0:00:16]} Bxa6 {[%emt 0:00:07]} 15. Rfb1 {[%emt 0:01:27]} Bxe2 {[%emt 0:01:00]} 16. Bxe7 {[%emt 0:00:24]} Rfb8 {[%emt 0:00:08]} 17. Bf1 {[%emt 0:05:21]} Bxf1 {[%emt 0:01:44]} 18. Kxf1 {[%emt 0:00:07]} Bf8 {[%emt 0:00:35]} 19. Bxf8 {[%emt 0:00:14]} Kxf8 {[%emt 0:00:06]} 20. Rb3 {[%emt 0:00:16]} Rb6 {[%emt 0:01:36]} 21. Rab1 {[%emt 0:00:40]} Rab8 {[%emt 0:00:09]} 22. Ke2 {[%emt 0:00:37]} Ke7 {[%emt 0:01:01]} 23. Kd3 {[%emt 0:00:13]} Kd6 {[%emt 0:00:08]} 24. c4 {[%emt 0:00:22]} dxc4+ {[%emt 0:00:52]} 25. Kxc4 {[%emt 0:00:08]} h5 {[%emt 0:00:07]} 26. h4 {[%emt 0:00:21]} R8b7 {[%emt 0:00:42]} 27. R1b2 {[%emt 0:00:21]} Rb8 {[%emt 0:00:36]} 28. Rb1 {[%emt 0:00:06]} R8b7 {[%emt 0:00:05]} 29. R1b2 {[%emt 0:00:06]} Rb8 {[%emt 0:00:05]} 30. Rb1 {[%emt 0:00:05]} R8b7 {[%emt 0:00:08]} 1/2-1/2

[Event "Chinese Team-ch Men 2025"]
[Site "Zhang Jiakou Hebei"]
[Date "2025.05.01"]
[Round "7.14"]
[White "Kong, Xiangrui"]
[Black "Zhao, Yuanhe"]
[Result "1/2-1/2"]
[Annotator "ChessBase"]
[ECO "B30"]
[WhiteElo "2451"]
[BlackElo "2482"]
[PlyCount "63"]
[EventDate "2025.04.26"]
[EventType "team-tourn"]
[EventCountry "CHN"]
[SourceTitle "playchess.com"]
[Source "ChessBase"]
[SourceQuality "1"]
[TimeControl "5400+30"]

1. e4 {[%emt 0:00:11]} c5 {[%emt 0:00:56]} 2. Nf3 {[%emt 0:00:36]} Nc6 {[%emt 0:01:55]} 3. Bb5 {[%emt 0:00:48]} e6 {[%emt 0:00:39]} 4. Bxc6 {[%emt 0:00:39]} bxc6 {[%emt 0:00:09]} 5. d3 {[%emt 0:00:09]} Ne7 {[%emt 0:04:03]} 6. Nbd2 {[%emt 0:00:21]} Qc7 {[%emt 0:02:04]} 7. h4 {[%emt 0:04:23]} e5 {[%emt 0:02:24]} 8. h5 {[%emt 0:00:34]} d6 {[%emt 0:07:03]} 9. Nc4 {[%emt 0:00:42]} h6 {[%emt 0:03:52]} 10. b3 {[%emt 0:01:21]} Be6 {[%emt 0:04:35]} 11. Bb2 {[%emt 0:05:11]} Ng8 {[%emt 0:06:29]} 12. Ne3 {[%emt 0:20:38]} Be7 {[%emt 0:00:10]} 13. Qe2 {[%emt 0:05:12]} Bg5 {[%emt 0:06:09]} 14. Nxg5 {[%emt 0:03:24]} hxg5 {[%emt 0:00:57]} 15. O-O-O {[%emt 0:00:15]} Nh6 {[%emt 0:05:03]} 16. g3 {[%emt 0:04:13]} f6 {[%emt 0:01:28]} 17. Rdf1 {[%emt 0:00:47]} Qd7 {[%emt 0:01:36]} 18. f4 {[%emt 0:01:19]} O-O-O {[%emt 0:09:45]} 19. fxg5 {[%emt 0:10:15]} fxg5 {[%emt 0:00:09]} 20. Kb1 {[%emt 0:00:51]} Rdf8 {[%emt 0:00:41]} 21. Bc1 {[%emt 0:00:36]} Rf6 {[%emt 0:06:38]} 22. Rf2 {[%emt 0:08:20]} Ng4 {[%emt 0:01:23]} 23. Nxg4 {[%emt 0:00:22]} Bxg4 {[%emt 0:00:10]} 24. Qe1 {[%emt 0:01:52]} Rxf2 {[%emt 0:04:00]} 25. Qxf2 {[%emt 0:00:05]} Qe7 {[%emt 0:00:03]} 26. Qe3 {[%emt 0:01:00]} Rxh5 {[%emt 0:00:06]} 27. Rxh5 {[%emt 0:00:04]} Bxh5 {[%emt 0:00:05]} 28. Qxg5 {[%emt 0:00:14]} Qxg5 {[%emt 0:00:04]} 29. Bd2 Qf4 30. Bxf4 Kd7 31. Bg5 a6 {[%emt 0:01:30]} 32. Kc1 {[%emt 0:01:35]} 1/2-1/2

[Event "Chinese Team-ch Men 2025"]
[Site "Zhang Jiakou Hebei"]
[Date "2025.05.01"]
[Round "7.15"]
[White "Jiang, Qinyu"]
[Black "Xie, Kaifan"]
[Result "1/2-1/2"]
[Annotator "ChessBase"]
[ECO "C88"]
[WhiteElo "2280"]
[BlackElo "2435"]
[PlyCount "36"]
[EventDate "2025.04.26"]
[EventType "team-tourn"]
[EventCountry "CHN"]
[SourceTitle "playchess.com"]
[Source "ChessBase"]
[SourceQuality "1"]
[TimeControl "5400+30"]

1. e4 {[%emt 0:00:00]} e5 {[%emt 0:00:20]} 2. Nf3 {[%emt 0:00:01]} Nc6 {[%emt 0:00:12]} 3. Bb5 {[%emt 0:00:01]} a6 {[%emt 0:00:13]} 4. Ba4 {[%emt 0:00:01]} Nf6 {[%emt 0:00:16]} 5. O-O {[%emt 0:00:02]} Be7 {[%emt 0:00:25]} 6. Re1 {[%emt 0:00:01]} b5 {[%emt 0:00:22]} 7. Bb3 {[%emt 0:00:01]} O-O {[%emt 0:00:12]} 8. h3 {[%emt 0:00:01]} Bb7 {[%emt 0:00:28]} 9. d3 {[%emt 0:00:01]} d5 {[%emt 0:00:11]} 10. exd5 {[%emt 0:00:01]} Nxd5 {[%emt 0:00:07]} 11. a4 {[%emt 0:00:01]} Ndb4 {[%emt 0:00:09]} 12. Nbd2 {[%emt 0:04:02]} Na5 {[%emt 0:00:07]} 13. Nxe5 {[%emt 0:01:22]} Nxb3 {[%emt 0:00:06]} 14. Nxb3 {[%emt 0:00:02]} Qd5 {[%emt 0:00:06]} 15. Nf3 {[%emt 0:00:07]} Qd7 {[%emt 0:00:09]} 16. Ne5 {[%emt 0:00:05]} Qd5 {[%emt 0:00:05]} 17. Nf3 {[%emt 0:00:04]} Qd7 {[%emt 0:16:24]} 18. Ne5 {[%emt 0:00:02]} Qd5 {[%emt 0:02:08]} 1/2-1/2

[Event "Chinese Team-ch Men 2025"]
[Site "Zhang Jiakou Hebei"]
[Date "2025.05.01"]
[Round "7.16"]
[White "Zhu, Hengyi"]
[Black "Gong, Bonuonuo"]
[Result "1-0"]
[Annotator "ChessBase"]
[ECO "B07"]
[WhiteElo "2385"]
[BlackElo "1709"]
[PlyCount "37"]
[EventDate "2025.04.26"]
[EventType "team-tourn"]
[EventCountry "CHN"]
[SourceTitle "playchess.com"]
[Source "ChessBase"]
[SourceQuality "1"]
[TimeControl "5400+30"]

1. e4 {[%emt 0:00:03]} d6 {[%emt 0:00:08]} 2. d4 {[%emt 0:00:22]} Nf6 {[%emt 0:00:09]} 3. Nc3 {[%emt 0:00:09]} g6 {[%emt 0:00:07]} 4. Be3 {[%emt 0:00:15]} Bg7 {[%emt 0:00:08]} 5. Qd2 {[%emt 0:00:09]} a6 {[%emt 0:00:07]} 6. Bh6 {[%emt 0:03:04]} Bxh6 {[%emt 0:00:08]} 7. Qxh6 {[%emt 0:00:07]} e5 {[%emt 0:00:03]} 8. Nf3 {[%emt 0:01:17]} Nc6 {[%emt 0:08:15]} 9. Nd5 {[%emt 0:10:25]} Nxd5 {[%emt 0:06:37]} 10. exd5 {[%emt 0:00:09]} Nxd4 {[%emt 0:00:16]} 11. Nxd4 {[%emt 0:04:54]} exd4 {[%emt 0:00:03]} 12. Qg7 {[%emt 0:07:23]} Rf8 {[%emt 0:01:06]} 13. Qxd4 {[%emt 0:02:37]} Qg5 {[%emt 0:08:41]} 14. f4 {[%emt 0:00:59]} Qg4 {[%emt 0:03:47]} 15. Kf2 {[%emt 0:16:42]} g5 {[%emt 0:10:56]} 16. Re1+ {[%emt 0:02:07]} Kd7 {[%emt 0:00:49]} 17. g3 {[%emt 0:00:35]} f6 {[%emt 0:12:24]} 18. Qe3 {[%emt 0:00:55]} c5 {[%emt 0:05:39]} 19. Qe7# {[%emt 0:00:06]} 1-0